bitfinex-derivatives/quotes_BNBF0:USTF0_20250305
["timestamp","ask_amount","ask_price","bid_price","bid_amount"]
[1741142239950,0.31141358,590.56,589.29,1.24278761]
[1741142240145,0.33866734,590.55,589.29,1.24278761]
[1741142240346,0.31141358,590.54,589.29,1.24278761]
[1741142240545,0.33867881,590.53,589.29,1.24278761]
[1741142240749,0.31141358,590.52,589.29,1.24278761]
[1741142241552,0.33869028,590.51,589.29,1.24278761]
[1741142241753,0.31141358,590.5,589.29,1.24278761]
[1741142242254,0.33869028,590.51,589.37,1.24278761]
[1741142242455,0.31148993,590.5,589.37,1.24278761]
[1741142242653,0.33870175,590.49,589.37,1.24278761]
[1741142242853,0.31148993,590.48,589.37,1.24278761]
[1741142243053,0.65020216,590.47,589.37,1.24278761]
[1741142243254,0.6502079,590.46,589.37,1.24278761]
[1741142243456,0.31148894,590.45,589.37,1.24278761]
[1741142243848,0.33873043,590.44,589.37,1.24278761]
[1741142244050,0.31148894,590.43,589.37,1.24278761]
[1741142244250,0.31148894,590.43,589.39,1.24278761]
[1741142245057,0.33874191,590.42,589.39,1.24278761]
[1741142245259,0.31148894,590.41,589.39,1.24278761]
[1741142245556,0.33875338,590.4,589.39,1.24278761]
[1741142246951,0.33875338,590.4,589.35,1.24278761]
[1741142247351,0.31154758,590.39,589.35,1.24278761]
[1741142248158,0.33875338,590.4,589.35,1.24278761]
[1741142249360,0.33875338,590.4,589.23,1.24278761]
[1741142250253,0.31152629,590.39,589.23,1.24278761]
[1741142250452,0.33876486,590.38,589.23,1.24278761]
[1741142252754,0.33876486,590.38,589.18,1.24278761]
[1741142254665,0.31152909,590.37,589.18,1.24278761]
[1741142255260,0.33877633,590.36,589.33,1.24278761]
[1741142255559,0.31152909,590.35,589.33,1.24278761]
[1741142256663,0.33878781,590.34,589.33,1.24278761]
[1741142256857,0.31152909,590.33,589.33,1.24278761]
[1741142257062,0.33879929,590.32,589.33,1.24278761]
[1741142257359,0.31152909,590.31,589.42,1.24278761]
[1741142257563,0.33881077,590.3,589.42,1.24278761]
[1741142257763,0.31152909,590.29,589.42,1.24278761]
[1741142257962,0.33882225,590.28,589.42,1.24278761]
[1741142258163,0.31156097,590.27,589.42,1.24278761]
[1741142258358,0.33883373,590.26,589.42,1.24278761]
[1741142260064,0.33883373,590.26,589.36,1.24278761]
[1741142261564,0.33883373,590.26,589.37,1.24278761]
[1741142266369,0.33883373,590.26,589.35,1.24278761]
[1741142268664,0.33883373,590.26,589.42,1.24278761]
[1741142270369,0.31158783,590.25,589.42,1.24278761]
[1741142270672,0.31158783,590.25,589.44,1.24278761]
[1741142271269,0.33884521,590.24,589.44,1.24278761]
[1741142271470,0.31158783,590.23,589.44,1.24278761]
[1741142271770,0.33884521,590.24,589.44,1.24278761]
[1741142272166,0.31173603,590.23,589.44,1.24278761]
[1741142272768,0.31175832,590.22,589.44,1.24278761]
[1741142272967,0.65062075,590.21,589.44,1.24278761]
[1741142273169,0.31175832,590.2,589.44,1.24278761]
[1741142273469,0.31175461,590.19,589.44,1.24278761]
[1741142273667,0.33887966,590.18,589.44,1.24278761]
[1741142273869,0.33887966,590.18,589.14,1.24278761]
[1741142274063,0.31176245,590.17,589.14,1.24278761]
[1741142274266,0.33889689,590.15,589.14,1.24278761]
[1741142274467,0.31176245,590.14,589.14,1.24278761]
[1741142274665,0.33891411,590.12,589.14,1.24278761]
[1741142274966,0.31176245,590.11,589.14,1.24278761]
[1741142275170,0.31172731,590.1,589.14,1.24278761]
[1741142275370,0.31172731,590.09,589.14,1.24278761]
[1741142275565,0.31172731,590.11,589.14,1.24278761]
[1741142275769,0.33893134,590.09,589.14,1.24278761]
[1741142275965,0.31172981,590.08,588.89,1.24278761]
[1741142276170,0.33894283,590.07,588.89,1.24278761]
[1741142276872,0.31171561,590.06,588.89,1.24278761]
[1741142277371,0.33894283,590.07,588.89,1.24278761]
[1741142278372,0.33894283,590.07,588.87,1.24278761]
[1741142280666,0.33894283,590.07,588.33,2.56210536]
[1741142280667,0.33894283,590.07,588.83,1.24278761]
[1741142282471,0.31171172,590.06,588.83,1.24278761]
[1741142282673,0.33895432,590.05,588.83,1.24278761]
[1741142282970,0.31171806,590.04,588.96,1.24278761]
[1741142283169,0.33896581,590.03,588.96,1.24278761]
[1741142283371,0.31171806,590.02,588.96,1.24278761]
[1741142284976,0.31171806,590.02,588.88,1.24278761]
[1741142284977,0.3389773,590.01,588.88,1.24278761]
[1741142285178,0.31171806,590.0,588.88,1.24278761]
[1741142285878,0.33898879,589.99,588.88,1.24278761]
[1741142286074,0.31171806,589.98,588.88,1.24278761]
[1741142287381,0.31171806,589.98,588.8,1.24278761]
[1741142287682,0.33898879,589.99,588.8,1.24278761]
[1741142288979,0.31173507,589.98,588.8,1.24278761]
[1741142289778,0.31173507,589.98,588.73,1.24278761]
[1741142290483,0.33898879,589.99,588.73,1.24278761]
[1741142290782,0.31173767,589.98,588.73,1.24278761]
[1741142291177,0.33900028,589.97,588.73,1.24278761]
[1741142293785,0.33900028,589.97,588.73,1.58250191]
[1741142293981,0.33900028,589.97,588.83,1.24278761]
[1741142295890,0.33900028,589.97,588.95,1.24278761]
[1741142298391,0.33900028,589.97,588.99,1.24278761]
[1741142301494,0.33900028,589.97,589.07,1.24278761]
[1741142303494,0.33900028,589.97,589.1,1.24278761]
[1741142305194,0.33900028,589.97,589.13,1.24278761]
[1741142307098,0.33900028,589.97,589.01,1.24278761]
[1741142309599,4.16181245,590.7,589.01,1.24278761]
[1741142309901,4.16181245,590.7,588.53,2.56210536]
[1741142309902,0.3385928,590.68,589.46,1.24278761]
[1741142310095,0.31155087,590.67,589.46,1.24278761]
[1741142310295,0.33861,590.65,589.46,1.24278761]
[1741142310600,0.31155087,590.64,589.46,1.24278761]
[1741142310801,0.3386272,590.62,589.46,1.24278761]
[1741142311302,0.31155892,590.61,589.46,1.24278761]
[1741142311699,0.3386444,590.59,589.46,1.24278761]
[1741142311896,0.31155892,590.58,589.46,1.24278761]
[1741142312299,0.31155892,590.58,589.43,1.24278761]
[1741142312499,0.3386616,590.56,589.43,1.24278761]
[1741142312698,0.31155892,590.55,589.43,1.24278761]
[1741142312902,0.33867881,590.53,589.43,1.24278761]
[1741142313100,0.31155892,590.52,589.43,1.24278761]
[1741142313303,0.33869602,590.5,589.43,1.24278761]
[1741142313499,0.31155892,590.49,589.43,1.24278761]
[1741142313699,0.33871322,590.47,589.43,1.24278761]
[1741142313900,0.31155892,590.46,589.43,1.24278761]
[1741142314303,0.33871322,590.47,589.43,1.24278761]
[1741142314905,0.33871322,590.47,589.37,1.24278761]
[1741142317911,0.33871322,590.47,589.44,1.24278761]
[1741142320506,0.33871322,590.47,589.15,1.24278761]
[1741142320903,0.31148075,590.46,589.15,1.24278761]
[1741142321408,0.31151253,590.45,589.15,1.24278761]
[1741142321613,0.31151253,590.44,589.15,1.24278761]
[1741142321811,0.31151253,590.46,589.15,1.24278761]
[1741142322012,0.31151253,590.45,589.15,1.24278761]
[1741142322213,0.31151253,590.44,589.15,1.24278761]
[1741142322413,0.31151253,590.43,589.16,1.24278761]
[1741142322611,0.31151253,590.46,589.16,1.24278761]
[1741142322812,0.33871322,590.47,589.16,1.24278761]
[1741142323011,0.31150113,590.46,589.16,1.24278761]
[1741142324613,0.33871322,590.47,589.16,1.24278761]
[1741142324813,0.31152036,590.46,589.16,1.24278761]
[1741142325015,0.3387247,590.45,589.25,1.24278761]
[1741142325809,0.31150885,590.44,589.25,1.24278761]
[1741142326013,0.33873617,590.43,589.25,1.24278761]
[1741142327010,0.33873617,590.43,589.2,1.24278761]
[1741142328614,0.33873617,590.43,589.32,1.24278761]
[1741142330617,0.33873617,590.43,589.35,1.24278761]
[1741142333922,0.33873617,590.43,589.33,1.24278761]
[1741142336724,0.33873617,590.43,589.06,1.5058905]
[1741142336725,0.33873617,590.43,589.06,1.24278761]
[1741142337024,0.31148497,590.42,589.07,0.33951822]
[1741142337225,0.33874764,590.41,589.07,0.33951822]
[1741142337422,0.31148497,590.4,589.07,0.33951822]
[1741142337623,0.33874764,590.41,589.07,0.33951822]
[1741142339627,0.33874764,590.41,589.22,1.24278761]
[1741142340225,0.31152019,590.4,589.22,1.24278761]
[1741142340426,0.33875912,590.39,589.22,1.24278761]
[1741142341624,0.31152905,590.38,589.22,1.24278761]
[1741142341922,0.3387706,590.37,589.22,1.24278761]
[1741142342128,0.3387706,590.37,589.27,1.24278761]
[1741142344429,0.3387706,590.37,589.11,1.24278761]
[1741142346530,0.3387706,590.37,589.12,0.3394894]
[1741142349424,0.3387706,590.37,589.46,1.25490875]
[1741142349629,0.3387706,590.37,589.55,1.24278761]
[1741142351729,0.3387706,590.37,589.59,1.24278761]
[1741142354129,0.3387706,590.37,589.5,1.24278761]
[1741142356233,0.3387706,590.37,589.33,1.24278761]
[1741142358430,0.3387706,590.37,589.37,1.24278761]
[1741142360335,0.31151882,590.36,589.37,1.24278761]
[1741142360736,0.33878207,590.35,589.56,1.24278761]
[1741142361232,0.311534,590.34,589.56,1.24278761]
[1741142362333,0.33879355,590.33,589.56,1.24278761]
[1741142362532,0.311534,590.32,589.56,1.24278761]
[1741142363034,0.33880503,590.31,589.33,1.24278761]
[1741142363233,0.311534,590.3,589.33,1.24278761]
[1741142363437,0.33881651,590.29,589.33,1.24278761]
[1741142363637,0.311534,590.28,589.33,1.24278761]
[1741142363835,0.33882799,590.27,589.33,1.24278761]
[1741142365143,0.33882799,590.27,589.27,1.24278761]
[1741142366548,0.31157899,590.26,589.27,1.24278761]
[1741142367448,0.31161167,590.25,589.27,1.24278761]
[1741142367648,0.31161167,590.26,589.27,1.24278761]
[1741142368552,0.31161167,590.26,589.37,1.24278761]
[1741142368946,0.33883947,590.25,589.37,1.24278761]
[1741142369251,0.31161167,590.24,589.37,1.24278761]
[1741142369451,0.33885095,590.23,589.37,1.24278761]
[1741142369645,0.31161167,590.22,589.37,1.24278761]
[1741142369844,0.33886243,590.21,589.37,1.24278761]
[1741142370045,0.31161167,590.2,589.37,1.24278761]
[1741142370250,0.33887392,590.19,589.37,1.24278761]
[1741142370444,0.31161167,590.18,589.37,1.24278761]
[1741142370650,0.3388854,590.17,589.37,1.24278761]
[1741142370850,0.31161167,590.16,589.16,1.24278761]
[1741142371755,0.33889689,590.15,589.16,1.24278761]
[1741142371955,0.31161167,590.14,589.16,1.24278761]
[1741142372150,0.33890837,590.13,589.16,1.24278761]
[1741142372451,0.31161167,590.12,589.16,1.24278761]
[1741142372750,0.33891986,590.11,589.16,1.24278761]
[1741142373355,0.33891986,590.11,589.22,1.24278761]
[1741142375456,0.33891986,590.11,589.12,0.3394894]
[1741142381060,0.31166451,590.1,589.12,0.3394894]
[1741142381264,0.33893134,590.09,589.12,0.3394894]
[1741142381466,0.31166451,590.08,589.12,0.3394894]
[1741142381666,0.33894283,590.07,589.12,0.3394894]
[1741142381966,0.31166451,590.06,589.12,0.3394894]
[1741142383164,0.33894283,590.07,589.12,0.3394894]
[1741142383568,0.33894283,590.07,589.13,1.24278761]
[1741142385269,0.31169416,590.06,589.13,1.24278761]
[1741142385472,0.33895432,590.05,589.13,1.24278761]
[1741142385662,0.31169416,590.04,589.13,1.24278761]
[1741142385865,0.31169416,590.04,589.07,1.24278761]
[1741142386066,0.33895432,590.05,589.07,1.24278761]
[1741142386067,0.33896581,590.03,589.07,1.24278761]
[1741142386972,0.31170087,590.02,589.07,1.24278761]
[1741142387769,0.3389773,590.01,589.07,1.24278761]
[1741142387970,0.31170087,590.0,589.07,1.24278761]
[1741142388165,0.33898879,589.99,589.1,1.24278761]
[1741142388669,0.31171503,589.98,589.1,1.24278761]
[1741142388869,0.33900028,589.97,589.1,1.24278761]
[1741142389067,0.31171503,589.96,589.1,1.24278761]
[1741142389872,0.65072106,589.96,589.1,1.24278761]
[1741142390070,0.33901178,589.95,589.1,1.24278761]
[1741142390267,0.31174252,589.94,589.1,1.24278761]
[1741142390466,0.33902327,589.93,589.07,1.24278761]
[1741142392367,0.31178031,589.92,589.07,1.24278761]
[1741142393475,0.33903476,589.91,588.97,1.24278761]
[1741142393772,0.31178031,589.9,588.97,1.24278761]
[1741142393970,0.33904626,589.89,588.97,1.24278761]
[1741142394169,0.31178031,589.88,588.97,1.24278761]
[1741142394573,0.33904626,589.89,588.97,1.24278761]
[1741142394774,0.31180386,589.88,588.97,1.24278761]
[1741142394971,0.33905775,589.87,588.97,1.24278761]
[1741142395174,0.31180386,589.86,588.97,1.24278761]
[1741142395376,0.33906925,589.85,588.84,1.24278761]
[1741142398070,0.33906925,589.85,588.79,1.24278761]
[1741142398673,0.31179994,589.84,588.79,1.24278761]
[1741142398878,0.33906925,589.85,588.79,1.24278761]
[1741142399272,0.31180206,589.84,588.79,1.24278761]
[1741142400076,0.33908075,589.83,588.79,1.24278761]
[1741142400277,0.31180206,589.82,588.78,1.24278761]
[1741142400480,0.33909225,589.81,588.78,1.24278761]
[1741142400671,0.31180206,589.8,588.78,1.24278761]
[1741142400878,0.33910374,589.79,588.78,1.24278761]
[1741142401379,0.31184183,589.78,588.78,1.24278761]
[1741142401976,0.33911524,589.77,588.78,1.24278761]
[1741142402176,0.31184183,589.76,588.78,1.24278761]
[1741142402378,0.33912674,589.75,588.78,1.24278761]
[1741142402576,0.31184183,589.74,588.78,1.24278761]
[1741142402778,0.33913824,589.73,588.78,1.24278761]
[1741142402977,0.31184183,589.72,588.78,1.24278761]
[1741142403979,0.31184183,589.72,588.68,1.24278761]
[1741142404381,0.33913824,589.73,588.68,1.24278761]
[1741142406279,0.33913824,589.73,588.39,1.24278761]
[1741142409386,0.33913824,589.73,588.4,0.33990482]
[1741142411884,0.33913824,589.73,588.69,1.24278761]
[1741142414391,0.33913824,589.73,588.76,1.24278761]
[1741142416495,0.33913824,589.73,588.64,1.24278761]
[1741142418194,0.33913824,589.73,588.91,1.24278761]
[1741142420191,0.33913824,589.73,588.75,1.24278761]
[1741142422798,0.33913824,589.73,588.53,1.24278761]
[1741142422991,0.33913824,589.73,588.54,0.33982397]
[1741142427800,0.33913824,589.73,588.87,1.24278761]
[1741142429901,0.33913824,589.73,589.03,1.24278761]
[1741142432009,0.33913824,589.73,589.01,1.24278761]
[1741142434202,0.33913824,589.73,588.57,2.56210536]
[1741142434203,0.33913824,589.73,588.83,1.24278761]
[1741142434406,0.31189319,589.72,588.83,1.24278761]
[1741142435109,0.31192549,589.71,588.83,1.24278761]
[1741142435304,0.31192549,589.72,588.83,1.24278761]
[1741142435509,0.31192549,589.71,588.83,1.24278761]
[1741142435703,0.31192549,589.72,588.83,1.24278761]
[1741142435906,0.65107524,589.71,588.83,1.24278761]
[1741142436106,0.65108099,589.7,588.83,1.24278761]
[1741142436307,0.31192549,589.69,588.83,1.24278761]
[1741142436507,0.339167,589.68,588.83,1.24278761]
[1741142437206,0.339167,589.68,588.66,1.24278761]
[1741142439908,0.339167,589.68,588.93,1.24278761]
[1741142441909,0.339167,589.68,589.0,1.24278761]
[1741142444716,0.339167,589.68,588.86,1.24278761]
[1741142447014,0.339167,589.68,588.91,1.24278761]
[1741142449322,0.339167,589.68,588.99,1.24278761]
[1741142451618,0.339167,589.68,588.84,1.24278761]
[1741142454525,0.339167,589.68,588.94,1.24278761]
[1741142456024,0.339167,589.68,588.97,1.24278761]
[1741142461122,0.339167,589.68,588.89,1.24278761]
[1741142463028,0.339167,589.68,588.93,1.24278761]
[1741142466230,0.339167,589.68,588.88,1.24278761]
[1741142467932,1.20358475,590.28,588.88,1.24278761]
[1741142468133,0.33883373,590.26,588.88,1.24278761]
[1741142468731,0.33883373,590.26,588.85,1.24278761]
[1741142470640,0.31171697,590.25,588.85,1.24278761]
[1741142472139,0.31171697,590.25,588.68,1.24278761]
[1741142473538,0.33885095,590.23,588.68,1.24278761]
[1741142473741,0.31171697,590.22,588.68,1.24278761]
[1741142474043,0.31171697,590.22,588.69,0.33973738]
[1741142474239,0.33886818,590.2,588.69,0.33973738]
[1741142474440,0.31171697,590.19,589.11,1.24278761]
[1741142474844,0.3388854,590.17,589.11,1.24278761]
[1741142475043,0.31171697,590.16,589.11,1.24278761]
[1741142475245,0.33889689,590.15,589.11,1.24278761]
[1741142476440,0.33889689,590.15,588.91,1.5058905]
[1741142476645,0.33889689,590.15,588.82,1.24278761]
[1741142479240,0.33889689,590.15,588.83,0.3396566]
[1741142479443,0.33889689,590.15,589.18,1.24278761]
[1741142483041,0.33889689,590.15,589.11,1.24278761]
[1741142485150,0.33889689,590.15,589.05,1.24278761]
[1741142487050,0.33889689,590.15,589.15,1.24278761]
[1741142490651,0.33889689,590.15,589.09,1.24278761]
[1741142492454,0.33889689,590.15,588.84,1.24278761]
[1741142493050,0.33889689,590.15,588.85,0.33964507]
[1741142494155,0.33889689,590.15,588.87,1.24278761]
[1741142495857,0.33889689,590.15,589.02,1.24278761]
[1741142498060,0.33889689,590.15,589.0,1.24278761]
[1741142499859,0.33889689,590.15,588.98,1.24278761]
[1741142502056,0.33889689,590.15,589.02,1.24278761]
[1741142504660,0.33889689,590.15,589.03,1.24278761]
[1741142506563,0.311707,590.14,589.03,1.24278761]
[1741142507156,0.311707,590.14,588.85,0.33964507]
[1741142507157,0.311707,590.14,588.95,1.24278761]
[1741142509366,0.33889689,590.15,588.95,1.24278761]
[1741142509563,0.31177279,590.14,588.95,1.24278761]
[1741142510069,0.33891411,590.12,588.95,1.24278761]
[1741142510269,0.31177279,590.11,589.0,1.24278761]
[1741142511372,0.33893134,590.09,589.0,1.24278761]
[1741142511669,0.31177279,590.08,589.0,1.24278761]
[1741142511868,0.33894858,590.06,589.0,1.24278761]
[1741142512071,0.31177279,590.05,589.0,1.24278761]
[1741142512369,0.33896581,590.03,589.0,1.24278761]
[1741142512570,0.31177279,590.02,589.0,1.24278761]
[1741142512763,0.33898305,590.0,589.0,1.24278761]
[1741142512967,0.31180292,589.99,589.0,1.24278761]
[1741142513169,0.33900028,589.97,588.85,0.33964507]
[1741142513367,0.31180292,589.96,588.85,0.33964507]
[1741142513570,0.33901178,589.95,588.85,0.33964507]
[1741142513867,0.31180292,589.94,588.85,0.33964507]
[1741142514071,0.33902327,589.93,588.85,0.33964507]
[1741142517369,0.31185005,589.92,588.67,1.24278761]
[1741142517577,0.33903476,589.91,588.67,1.24278761]
[1741142517975,0.33903476,589.91,588.56,1.24278761]
[1741142518873,0.31185929,589.9,588.56,1.24278761]
[1741142519074,0.33904626,589.89,588.56,1.24278761]
[1741142519371,0.31185929,589.88,588.56,1.24278761]
[1741142519578,0.33905775,589.87,588.56,1.24278761]
[1741142520480,0.33905775,589.87,588.53,1.24278761]
[1741142520975,0.31184234,589.86,588.53,1.24278761]
[1741142521274,0.33906925,589.85,588.53,1.24278761]
[1741142521481,0.31184234,589.84,588.53,1.24278761]
[1741142522780,0.31184234,589.84,588.67,1.24278761]
[1741142523181,0.3390865,589.82,588.67,1.24278761]
[1741142523382,0.31184234,589.81,588.67,1.24278761]
[1741142524685,0.31184234,589.81,588.52,1.24278761]
[1741142526279,0.3390865,589.82,588.52,1.24278761]
[1741142526481,0.31189241,589.81,588.52,1.24278761]
[1741142526788,0.31189241,589.81,588.44,1.24278761]
[1741142528382,0.31189241,589.81,587.98,2.56210536]
[1741142528383,0.31189241,589.81,588.42,1.24278761]
[1741142528582,0.33910374,589.79,588.42,1.24278761]
[1741142528779,0.31189241,589.78,588.42,1.24278761]
[1741142528984,0.33911524,589.77,588.42,1.24278761]
[1741142529179,0.31189241,589.76,588.42,1.24278761]
[1741142529385,0.33912674,589.75,588.42,1.24278761]
[1741142529584,0.31189241,589.74,588.42,1.24278761]
[1741142529788,0.33913824,589.73,588.42,1.24278761]
[1741142529985,0.31189241,589.72,588.42,1.24278761]
[1741142530485,0.33913824,589.73,588.42,1.24278761]
[1741142530686,0.31190591,589.72,588.42,1.24278761]
[1741142531589,0.31190591,589.72,588.43,0.33988749]
[1741142532382,0.33914975,589.71,588.43,0.33988749]
[1741142532787,0.31184918,589.7,588.43,0.33988749]
[1741142532988,0.33914975,589.71,588.43,0.33988749]
[1741142533182,0.33914975,589.71,588.53,1.24278761]
[1741142534288,0.3118411,589.7,588.53,1.24278761]
[1741142535293,0.33914975,589.71,588.64,1.24278761]
[1741142538392,0.33914975,589.71,588.55,1.24278761]
[1741142540194,3.82138479,590.53,588.55,1.24278761]
[1741142540394,0.33869028,590.51,588.55,1.24278761]
[1741142540595,0.31169131,590.5,588.55,1.24278761]
[1741142540789,0.31169131,590.49,588.57,0.33980665]
[1741142540990,0.31169131,590.48,588.57,0.33980665]
[1741142541296,0.33871896,590.46,588.98,1.24278761]
[1741142541490,0.31169131,590.45,588.98,1.24278761]
[1741142541690,0.33873617,590.43,588.98,1.24278761]
[1741142541893,0.31169131,590.42,588.98,1.24278761]
[1741142542093,0.33875338,590.4,588.98,1.24278761]
[1741142542294,0.31169131,590.39,588.98,1.24278761]
[1741142542490,0.31169131,590.38,588.98,1.24278761]
[1741142542690,0.33877633,590.36,589.07,1.24278761]
[1741142542891,0.31169131,590.35,589.07,1.24278761]
[1741142543295,0.33879355,590.33,589.07,1.24278761]
[1741142543691,0.31165144,590.32,589.07,1.24278761]
[1741142544698,0.33880503,590.31,589.07,1.24278761]
[1741142544898,0.31165144,590.3,589.08,1.24278761]
[1741142545893,0.33881651,590.29,589.08,1.24278761]
[1741142546097,0.31165144,590.28,589.08,1.24278761]
[1741142546698,0.33882799,590.27,589.08,1.24278761]
[1741142546899,0.31165144,590.26,589.08,1.24278761]
[1741142547101,0.33883947,590.25,589.08,1.24278761]
[1741142547302,0.31165144,590.24,589.02,1.24278761]
[1741142548195,0.33885095,590.23,589.02,1.24278761]
[1741142548398,0.31165144,590.22,589.02,1.24278761]
[1741142548797,0.65051633,590.21,589.02,1.24278761]
[1741142548997,0.3116539,590.2,589.02,1.24278761]
[1741142549398,0.33887392,590.19,589.02,1.24278761]
[1741142549598,0.3116539,590.18,589.02,1.24278761]
[1741142549797,0.3116539,590.18,588.85,1.24278761]
[1741142551203,0.33887392,590.19,588.85,1.24278761]
[1741142552603,0.33887392,590.19,588.75,1.24278761]
[1741142555604,0.33887392,590.19,589.02,1.24278761]
[1741142558212,0.33887392,590.19,588.87,1.24278761]
[1741142558410,0.33887392,590.19,588.88,0.33962776]
[1741142562713,0.33887392,590.19,589.02,1.24278761]
[1741142563713,0.33887392,590.19,589.03,0.33954127]
[1741142564616,0.33887392,590.19,589.1,1.24278761]
[1741142565112,0.33887392,590.19,589.11,0.33949517]
[1741142568810,0.33887392,590.19,589.16,1.24278761]
[1741142570614,0.33887392,590.19,589.14,1.24278761]
[1741142572811,0.33887392,590.19,589.11,1.58228278]
[1741142575618,0.33887392,590.19,589.19,1.24278761]
[1741142578521,0.33887392,590.19,589.26,1.24278761]
[1741142579422,0.31160832,590.18,589.26,1.24278761]
[1741142579618,0.33887392,590.19,589.26,1.24278761]
[1741142581321,0.33887392,590.19,589.28,1.24278761]
[1741142584423,0.33887392,590.19,589.4,1.24278761]
[1741142586426,0.33887392,590.19,589.56,1.24278761]
[1741142588732,0.33887392,590.19,589.49,1.24278761]
[1741142590030,0.33887392,590.19,589.5,1.24278761]
[1741142592233,0.33887392,590.19,589.46,1.24278761]
[1741142595038,0.33887392,590.19,589.55,1.24278761]
[1741142595534,5.35445182,590.99,589.55,1.24278761]
[1741142595739,0.33842665,590.97,589.55,1.24278761]
[1741142595940,1.99858163,590.97,589.55,1.24278761]
[1741142596135,0.31140364,590.96,589.55,1.24278761]
[1741142596339,0.31140364,590.95,589.55,1.24278761]
[1741142596540,0.31140364,590.94,589.55,1.24278761]
[1741142596933,1.97155862,590.95,589.55,1.24278761]
[1741142597133,0.31140364,590.94,589.55,1.24278761]
[1741142597341,0.31140364,590.94,589.7,1.24278761]
[1741142597641,0.31140364,590.93,589.7,1.24278761]
[1741142597843,0.33846101,590.91,589.7,1.24278761]
[1741142598044,0.31140364,590.9,589.7,1.24278761]
[1741142599539,0.3384782,590.88,589.7,1.24278761]
[1741142599742,0.31140364,590.87,589.62,1.24278761]
[1741142600140,0.33849538,590.85,589.62,1.24278761]
[1741142600339,0.31140364,590.84,589.62,1.24278761]
[1741142600741,0.33851257,590.82,589.62,1.24278761]
[1741142600942,0.31140364,590.81,589.62,1.24278761]
[1741142601246,0.33852976,590.79,589.51,1.24278761]
[1741142601443,0.3114238,590.78,589.51,1.24278761]
[1741142602738,0.33852976,590.79,589.51,1.24278761]
[1741142604345,0.33852976,590.79,589.56,1.24278761]
[1741142604642,0.31131843,590.78,589.56,1.24278761]
[1741142604947,0.33852976,590.79,589.56,1.24278761]
[1741142606440,0.33852976,590.79,589.67,1.24278761]
[1741142610154,0.33852976,590.79,589.72,1.24278761]
[1741142612152,0.33852976,590.79,589.6,1.24278761]
[1741142614654,0.33852976,590.79,589.67,1.24278761]
[1741142617456,0.33852976,590.79,589.59,1.24278761]
[1741142619960,0.33852976,590.79,589.16,2.56210536]
[1741142619961,0.33852976,590.79,589.51,1.24278761]
[1741142620560,0.31131707,590.78,589.51,1.24278761]
[1741142621657,0.31131707,590.78,589.06,2.56210536]
[1741142621658,0.64989552,590.77,589.37,1.24278761]
[1741142621863,0.3113543,590.76,589.37,1.24278761]
[1741142622059,0.3113543,590.76,589.38,0.33933964]
[1741142622255,0.33855268,590.75,589.38,0.33933964]
[1741142622461,0.3113543,590.74,589.38,0.33933964]
[1741142622659,0.33856414,590.73,589.38,0.33933964]
[1741142622862,0.3113543,590.72,589.38,0.33933964]
[1741142623363,0.33857561,590.71,589.38,0.33933964]
[1741142623558,0.3113543,590.7,589.38,0.33933964]
[1741142625165,0.3385928,590.68,589.38,0.33933964]
[1741142625362,0.3113543,590.67,589.38,0.33933964]
[1741142625561,0.33861,590.65,589.38,0.33933964]
[1741142625763,0.3113543,590.64,589.38,0.33933964]
[1741142626667,0.33862147,590.63,589.38,0.33933964]
[1741142626867,0.31142969,590.62,589.38,0.33933964]
[1741142629571,0.33863867,590.6,589.38,0.33933964]
[1741142629771,0.31142969,590.59,589.38,0.33933964]
[1741142631471,0.33865014,590.58,589.38,0.33933964]
[1741142631667,0.31142969,590.57,589.38,0.33933964]
[1741142633878,0.33866734,590.55,589.38,0.33933964]
[1741142634075,0.31142969,590.54,589.38,0.33933964]
[1741142634279,0.31142969,590.54,589.21,1.24278761]
[1741142634472,0.33868454,590.52,589.21,1.24278761]
[1741142634674,0.31142969,590.51,589.21,1.24278761]
[1741142634876,0.33870175,590.49,589.23,1.24278761]
[1741142635077,0.31142969,590.48,589.23,1.24278761]
[1741142635278,0.33871322,590.47,589.23,1.24278761]
[1741142635478,0.31142969,590.46,589.23,1.24278761]
[1741142635679,0.3387247,590.45,589.23,1.24278761]
[1741142635878,0.31142969,590.44,589.23,1.24278761]
[1741142636074,0.33873617,590.43,589.23,1.24278761]
[1741142636279,0.31142969,590.42,589.23,1.24278761]
[1741142636475,0.33874764,590.41,589.23,1.24278761]
[1741142636679,0.31142969,590.4,589.23,1.24278761]
[1741142636874,0.33875912,590.39,589.23,1.24278761]
[1741142637073,0.31142969,590.38,589.23,1.24278761]
[1741142637682,0.31142969,590.38,588.82,2.56210536]
[1741142637683,0.3387706,590.37,589.08,1.24278761]
[1741142637874,0.31142969,590.36,589.08,1.24278761]
[1741142638073,0.33878207,590.35,589.08,1.24278761]
[1741142638273,0.31142969,590.34,589.08,1.24278761]
[1741142638477,0.33879355,590.33,589.08,1.24278761]
[1741142638675,0.31142969,590.32,589.08,1.24278761]
[1741142638877,0.33880503,590.31,589.08,1.24278761]
[1741142639076,0.31142969,590.3,589.08,1.24278761]
[1741142639476,0.33880503,590.31,589.08,1.24278761]
[1741142639675,0.31153478,590.3,589.08,1.24278761]
[1741142640276,0.31153478,590.3,588.97,1.24278761]
[1741142640277,0.33881651,590.29,588.97,1.24278761]